bitfinex-derivatives/quotes_SOLF0:USTF0_20250321
["timestamp","ask_amount","ask_price","bid_price","bid_amount"]
[1742555938861,0.05701519,126.26,126.24,7.925]
[1742555939062,0.05701519,126.26,126.25,7.9245]
[1742555939258,0.05701519,126.26,126.25,20.30514997]
[1742555942161,16.64904997,126.33,126.29,7.9219]
[1742555942357,28.44,126.32,126.29,7.9219]
[1742555942560,36.3607,126.32,126.29,7.9219]
[1742555943260,36.3607,126.32,126.29,7.97270528]
[1742555943457,36.42045497,126.32,126.29,7.97270528]
[1742555944566,7.9208,126.31,126.29,7.97270528]
[1742555945264,12.38064997,126.31,126.29,0.05080528]
[1742555945461,12.38064997,126.3,126.29,0.05080528]
[1742555946066,20.30204997,126.3,126.29,0.05080528]
[1742555950667,20.30204997,126.3,126.23,32.6195]
[1742555950668,20.30064997,126.3,126.16,261.36]
[1742555950859,12.38064997,126.24,126.21,7.9267]
[1742555951061,40.82064997,126.24,126.21,7.9267]
[1742555951268,28.44,126.26,126.19,12.38064997]
[1742555951475,40.82064997,126.26,126.21,20.30734997]
[1742555951669,7.9259,126.23,126.21,12.38064997]
[1742555951867,0.06025748,126.25,126.21,12.38064997]
[1742555952065,0.06025748,126.25,126.21,20.30764997]
[1742555952260,7.98525748,126.25,126.21,20.30764997]
[1742555953473,20.30584997,126.24,126.2,7.9273]
[1742555953773,28.44,126.23,126.2,7.9273]
[1742555953968,7.9268,126.22,126.18,7.9288]
[1742555954164,40.82064997,126.23,126.18,7.9288]
[1742555954364,0.05563538,126.21,126.19,12.38064997]
[1742555954764,0.05563538,126.21,126.2,7.9274]
[1742555956174,0.05563538,126.21,126.2,20.30804997]
[1742555956569,0.05563538,126.21,126.19,7.928]
[1742555957375,0.05563538,126.21,126.19,20.30864997]
[1742555957673,28.49563538,126.21,126.19,20.30864997]
[1742555957972,36.42273538,126.21,126.19,12.38064997]
[1742555958168,40.87628535,126.21,126.15,12.38064997]
[1742555958375,40.82064997,126.21,126.15,12.38064997]
[1742555958575,0.06083496,126.19,126.15,12.38064997]
[1742555958770,28.50083496,126.19,126.17,12.38064997]
[1742555959781,0.06083496,126.19,126.18,7.9289]
[1742555960169,0.06083496,126.19,126.17,20.30994997]
[1742555960579,0.06083496,126.19,126.17,12.38064997]
[1742555960973,0.06083496,126.19,126.18,7.9289]
[1742555962169,0.06083496,126.19,126.18,55.7967966]
[1742555962973,0.06083496,126.19,126.18,36.3689]
[1742555965281,0.06083496,126.19,126.17,7.9293]
[1742555967294,0.06083496,126.19,126.18,7.9289]
[1742555968892,0.06083496,126.19,126.16,19.4278966]
[1742555969888,0.06083496,126.19,126.18,7.9289]
[1742555970396,0.06083496,126.19,126.17,7.9293]
[1742555970994,0.06083496,126.19,126.16,19.4278966]
[1742555971497,0.06083496,126.19,126.17,7.9291]
[1742555971697,0.06083496,126.19,126.16,19.4278966]
[1742555972201,0.06083496,126.19,126.17,7.9296]
[1742555972389,7.98913496,126.19,126.16,19.4278966]
[1742555972697,0.06083496,126.19,126.15,28.44]
[1742555972896,0.06083496,126.19,126.15,7.9305]
[1742555973494,7.9294,126.18,126.15,7.9305]
[1742555974201,7.9294,126.18,126.16,7.9301]
[1742555974700,0.06083496,126.19,126.16,7.9301]
[1742555974701,7.98943496,126.19,126.16,7.9301]
[1742555975601,7.98943496,126.19,126.17,7.9296]
[1742555975797,0.06083496,126.19,126.17,7.9296]
[1742555975997,0.06083496,126.19,126.16,19.4278966]
[1742555977205,0.06083496,126.19,126.18,7.9289]
[1742555979004,0.06083496,126.19,126.17,7.9293]
[1742555979304,7.98923496,126.19,126.15,28.46]
[1742555979711,7.98923496,126.19,126.16,7.9299]
[1742555980002,0.06083496,126.19,126.16,7.9299]
[1742555980600,0.06083496,126.19,126.15,36.3906]
[1742555980903,0.06083496,126.19,126.15,7.9306]
[1742555981308,7.9292,126.18,126.14,19.4278966]
[1742555981906,7.9292,126.18,126.15,7.9302]
[1742555982207,0.06083496,126.19,126.14,19.4278966]
[1742555982703,7.98943496,126.19,126.14,19.4278966]
[1742555983100,7.98943496,126.19,126.16,20.36684997]
[1742555984206,7.929,126.18,126.16,12.43704997]
[1742555984508,0.06083496,126.19,126.16,12.43704997]
[1742555985313,7.98943496,126.19,126.16,20.36674997]
[1742555985803,0.06083496,126.19,126.16,20.36674997]
[1742555986210,7.9291,126.18,126.16,20.36674997]
[1742555986411,0.06083496,126.19,126.16,20.36674997]
[1742555986910,0.06083496,126.19,126.16,12.43704997]
[1742555987806,12.49788493,126.19,126.12,2.0337]
[1742555988010,14.53578493,126.19,126.13,12.43704997]
[1742555988211,12.43704997,126.19,126.15,12.43704997]
[1742555988417,0.05846279,126.17,126.15,12.43704997]
[1742555988710,28.51846279,126.17,126.15,12.43704997]
[1742555989811,36.44836279,126.17,126.15,12.43704997]
[1742555990411,28.51846279,126.17,126.13,12.43704997]
[1742555990713,40.95551276,126.17,126.13,12.43704997]
[1742555991213,7.9313,126.15,126.13,12.43704997]
[1742555992105,7.9313,126.15,126.13,20.36914997]
[1742555992812,7.9313,126.15,126.13,12.43704997]
[1742555993715,40.95551276,126.17,126.13,12.43704997]
[1742555993908,28.51846279,126.17,126.13,12.43704997]
[1742555994811,36.44856279,126.17,126.14,7.9312]
[1742555995316,28.51846279,126.17,126.13,12.43704997]
[1742555995518,7.9303,126.16,126.13,12.43704997]
[1742555995908,7.9303,126.16,126.13,20.36884997]
[1742555996416,28.51846279,126.17,126.13,12.43704997]
[1742555996613,28.51846279,126.17,126.14,7.931]
[1742555996809,36.44806279,126.17,126.14,7.931]
[1742555997520,36.44806279,126.17,126.15,20.36784997]
[1742555997521,0.05846279,126.17,126.15,20.36784997]
[1742555997721,0.05846279,126.17,126.15,12.43704997]
[1742555998114,0.05846279,126.17,126.15,20.36754997]
[1742556001821,12.43704997,126.24,126.16,28.46]
[1742556002011,12.43704997,126.24,126.14,4.387]
[1742556002012,12.43704997,126.21,126.17,12.43704997]
[1742556002207,28.46,126.2,126.17,12.43704997]
[1742556002820,36.3879,126.2,126.18,7.9289]
[1742556003014,36.44604493,126.2,126.17,12.49784842]
[1742556003421,36.44604493,126.2,126.17,20.42684842]
[1742556004020,28.51814493,126.2,126.18,7.9289]
[1742556005725,36.44594493,126.2,126.17,20.42704842]
[1742556006923,36.44594493,126.2,126.18,7.9289]
[1742556007118,7.98594493,126.2,126.18,7.9289]
[1742556007621,7.98594493,126.2,126.17,20.42704842]
[1742556008220,0.05814493,126.2,126.18,7.9288]
[1742556010911,23.74,126.16,126.08,58.49181613]
[1742556011113,12.43704997,126.09,126.07,87.49124371]
[1742556011412,37.6352,126.08,126.07,54.15978172]
[1742556011623,37.6352,126.08,126.07,14.30668172]
[1742556011815,40.12956905,126.08,126.07,8.172e-05]
[1742556012723,72.54554251,126.08,126.07,8.172e-05]
[1742556013419,59.91436047,126.08,126.07,8.172e-05]
[1742556014731,7.9362,126.07,126.02,12.43704997]
[1742556014918,22.24994411,126.06,126.02,12.43704997]
[1742556015119,15.42853801,126.05,126.01,61.31309323]
[1742556015320,8.42842213,126.04,126.01,61.31309323]
[1742556015622,2.49436905,126.04,126.01,61.31309323]
[1742556015928,7.98710172,126.06,126.01,53.37349323]
[1742556016127,5.93048502,126.05,126.01,53.37349323]
[1742556016319,5.93048502,126.04,126.01,53.37349323]
[1742556016520,7.98710172,126.06,126.01,23.73349323]
[1742556016722,5.92701009,126.05,126.01,23.73349323]
[1742556016919,5.92701009,126.04,126.01,23.73349323]
[1742556017121,7.98710172,126.06,126.01,23.73349323]
[1742556017320,5.9270252,126.05,126.01,23.73349323]
[1742556017527,5.92402362,126.04,126.01,23.73349323]
[1742556017728,2.69609789,126.05,126.01,23.73349323]
[1742556017930,5.92373661,126.04,126.01,23.73349323]
[1742556018224,7.98710172,126.06,126.01,23.73349323]
[1742556018425,5.92119216,126.05,126.01,23.73349323]
[1742556018625,7.98710172,126.06,126.01,23.73349323]
[1742556018826,5.92244809,126.05,126.01,23.73349323]
[1742556019030,7.98710172,126.06,126.01,23.73349323]
[1742556019233,5.92225972,126.05,126.01,23.73349323]
[1742556019423,7.98710172,126.06,126.01,23.73349323]
[1742556019624,8.61033389,126.05,126.01,31.67309323]
[1742556019930,2.69215014,126.05,126.01,31.67309323]
[1742556020123,7.98710172,126.06,126.01,31.67309323]
[1742556020323,5.91790043,126.05,126.01,31.67309323]
[1742556020525,7.98710172,126.06,126.01,31.67309323]
[1742556020719,5.91537094,126.05,126.01,31.67309323]
[1742556020932,7.98710172,126.06,126.01,31.67309323]
[1742556021126,5.91495172,126.05,126.01,31.67309323]
[1742556021433,2.69043688,126.05,126.01,31.67309323]
[1742556021729,7.98710172,126.06,126.01,31.67309323]
[1742556021931,5.91261429,126.05,126.01,31.67309323]
[1742556022133,7.98710172,126.06,126.01,31.67309323]
[1742556022329,5.9128493,126.05,126.01,31.67309323]
[1742556022528,29.52,126.04,126.01,4.2612]
[1742556022933,37.4581,126.04,126.01,4.2612]
[1742556023129,29.52,126.04,126.01,4.2612]
[1742556024436,29.52,126.04,126.01,12.2004]
[1742556024934,29.52,126.04,126.02,7.939]
[1742556025135,29.52,126.04,126.01,4.2612]
[1742556026036,29.52,126.04,126.01,12.2008]
[1742556026941,29.52,126.04,126.02,7.9389]
[1742556027136,29.52,126.04,126.01,4.2612]
[1742556027640,29.52,126.04,126.01,23.73349323]
[1742556028030,29.52,126.04,126.03,7.9384]
[1742556029435,0.05060172,126.06,126.01,53.15349323]
[1742556029837,0.05060172,126.06,126.03,19.47229323]
[1742556030540,0.05060172,126.06,126.05,7.9371]
[1742556035246,9.76728797,126.11,126.05,12.45858442]
[1742556035443,44.68506715,126.1,126.05,12.45858442]
[1742556035743,15.34506715,126.09,126.05,12.45858442]
[1742556035946,5.9019489,126.08,126.06,7.9361]
[1742556036150,7.9346,126.09,126.06,7.9361]
[1742556036337,5.9014856,126.08,126.06,7.9361]
[1742556036534,7.9948374,126.09,126.06,7.9882733]
[1742556036843,5.90186511,126.08,126.06,7.9882733]
[1742556037043,7.9948374,126.09,126.06,7.9882733]
[1742556037247,5.90183088,126.08,126.06,7.9882733]
[1742556037434,7.9948374,126.09,126.06,7.9882733]
[1742556037638,5.90227615,126.08,126.06,7.9882733]
[1742556037838,7.9948374,126.09,126.06,7.9882733]
[1742556038038,5.90224542,126.08,126.06,7.9882733]
[1742556038245,7.9948374,126.09,126.06,7.9882733]
[1742556038550,5.90275766,126.08,126.06,7.9882733]
[1742556038741,7.9948374,126.09,126.06,7.9882733]
[1742556038944,5.90302017,126.08,126.06,7.9882733]
[1742556039140,7.9948374,126.09,126.07,7.9358]
[1742556039346,5.90280278,126.08,126.07,7.9358]
[1742556039547,5.90280278,126.08,126.06,0.0521733]
[1742556039850,7.9948374,126.09,126.06,7.9882733]
[1742556040044,5.9033759,126.08,126.06,7.9882733]
[1742556040245,7.9948374,126.09,126.06,7.9882733]
[1742556040446,5.90442165,126.08,126.06,7.9882733]
[1742556040752,7.9948374,126.09,126.06,7.9882733]
[1742556040952,5.90410456,126.08,126.06,7.9882733]
[1742556041246,7.9948374,126.09,126.06,7.9882733]
[1742556041445,5.90488189,126.08,126.06,7.9882733]
[1742556041650,7.9948374,126.09,126.06,7.9882733]
[1742556041852,5.90373977,126.08,126.06,7.9882733]
[1742556042050,7.9948374,126.09,126.06,7.9882733]
[1742556042250,5.90375776,126.08,126.06,7.9882733]
[1742556042442,7.9948374,126.09,126.06,7.9882733]
[1742556042640,5.90362971,126.08,126.06,7.9882733]
[1742556042950,7.9948374,126.09,126.06,7.9882733]
[1742556043149,5.90394258,126.08,126.06,7.9882733]
[1742556043450,5.90394258,126.07,126.06,7.9882733]
[1742556047856,5.90394258,126.07,126.06,0.0521733]
[1742556048557,5.90394258,126.07,126.06,7.9886733]
[1742556048758,8.59524568,126.07,126.06,7.9886733]
[1742556049154,8.59524568,126.07,126.06,0.0521733]
[1742556050551,8.61249076,126.07,126.06,0.0521733]
[1742556051053,18.08625484,126.07,126.06,0.0521733]
[1742556051253,26.02215484,126.07,126.06,0.0521733]
[1742556051758,30.33621743,126.07,126.06,0.0521733]
[1742556052163,59.47621743,126.07,126.06,0.0521733]
[1742556052953,51.54031743,126.07,126.06,0.0521733]
[1742556053461,61.34242884,126.07,126.06,0.0521733]
[1742556053656,69.27832884,126.07,126.06,0.0521733]
[1742556053860,94.11452726,126.07,126.06,0.0521733]
[1742556054252,84.36417079,126.07,126.06,0.0521733]
[1742556054448,76.42827079,126.07,126.06,0.0521733]
[1742556054664,86.27880327,126.07,126.06,0.0521733]
[1742556055158,86.27880327,126.07,126.06,7.9886733]
[1742556055360,83.56781495,126.07,126.05,12.45858442]
[1742556055558,32.3264014,126.06,126.05,12.45858442]
[1742556055753,32.3264014,126.06,126.05,20.39568442]
[1742556056151,22.51393976,126.06,126.05,20.39568442]
[1742556058056,22.25164183,126.06,126.05,20.39568442]
[1742556062969,22.25028559,126.06,126.05,20.39568442]
[1742556066669,7.00536569,126.06,126.05,20.39568442]
[1742556066974,22.26248786,126.06,126.05,20.39568442]
[1742556067269,12.26768786,126.06,126.05,20.39568442]
[1742556067679,43.73969589,126.07,126.06,7.9365]
[1742556068571,43.73969589,126.07,126.06,20.39508442]
[1742556069478,43.73969589,126.07,126.05,20.39538442]
[1742556069670,0.0602374,126.09,126.05,20.39538442]
[1742556070171,0.0602374,126.09,126.06,7.9365]
[1742556070367,6.97966467,126.08,126.05,12.45858442]
[1742556070567,0.0602374,126.09,126.05,12.45858442]
[1742556070768,6.97969211,126.08,126.06,7.9362]
[1742556070968,7.9951374,126.09,126.06,7.9362]
[1742556071176,6.97959769,126.08,126.06,7.9362]
[1742556071475,7.9951374,126.09,126.06,7.9362]
[1742556071676,6.98086692,126.08,126.06,7.9362]
[1742556071869,51.73483329,126.09,126.06,7.9362]
[1742556072170,6.97952686,126.08,126.06,7.9362]
[1742556072370,51.73483329,126.09,126.06,7.9362]
[1742556072571,6.98078003,126.08,126.06,7.9362]
[1742556072770,51.73483329,126.09,126.06,7.9362]
[1742556073069,6.98059226,126.08,126.06,7.9362]
[1742556073269,51.73483329,126.09,126.06,7.9362]
[1742556073473,6.98255111,126.08,126.06,7.9362]
[1742556073663,51.73483329,126.09,126.06,7.9362]
[1742556073871,6.98257181,126.08,126.06,7.9362]
[1742556074173,24.89225262,126.08,126.06,7.9362]
[1742556076076,51.73483329,126.09,126.06,7.9362]
[1742556076276,6.98049743,126.08,126.06,7.9362]
[1742556076577,51.73483329,126.09,126.06,7.9362]
[1742556076777,6.98047281,126.08,126.06,7.9362]
[1742556077075,51.73483329,126.09,126.06,7.9362]
[1742556077276,6.98047281,126.08,126.06,7.9362]
[1742556077472,51.73483329,126.09,126.06,7.9362]
[1742556077673,6.98260829,126.08,126.06,7.9362]
[1742556077976,6.98260829,126.08,126.05,12.45858442]
[1742556077977,43.79993329,126.09,126.07,7.9358]
[1742556078181,17.91815681,126.08,126.05,12.45858442]
[1742556078377,10.93492397,126.08,126.05,12.45858442]
[1742556078579,10.93492397,126.08,126.06,7.9362]
[1742556078977,10.93492397,126.08,126.05,12.45858442]
[1742556079183,18.87042397,126.08,126.05,20.39548442]
[1742556079574,38.43713751,126.07,126.05,12.45858442]
[1742556079879,5.48315026,126.06,126.05,12.45858442]
[1742556080078,8.07676649,126.06,126.05,12.45858442]
[1742556081279,8.07676649,126.06,126.05,20.39568442]
[1742556083481,8.07676649,126.06,126.05,12.45858442]
[1742556083672,8.07394198,126.06,126.05,12.45858442]
[1742556084075,8.07394198,126.06,126.05,20.39568442]
[1742556091286,8.07394198,126.06,126.05,12.45858442]
[1742556091579,15.04258338,126.06,126.03,12.45858442]
[1742556091778,5.48032575,126.05,126.03,12.45858442]
[1742556092086,8.07394198,126.04,126.03,20.39698442]
[1742556092775,51.69659514,126.04,126.01,20.39768442]
[1742556092980,12.44507891,126.03,126.01,20.39768442]
[1742556093180,5.48032575,126.02,126.01,12.45858442]
[1742556093375,5.48032575,126.02,126.0,274.25858442]
[1742556093580,5.48032575,126.01,126.0,274.25858442]
[1742556093886,5.48032575,126.01,126.0,12.45858442]
[1742556094186,8.07394198,126.01,126.0,12.45858442]
[1742556094487,8.07394198,126.01,126.0,20.39888442]
[1742556095387,8.07394198,126.01,126.0,12.45858442]
[1742556095683,7.9916287,126.03,125.99,12.45858442]
[1742556095885,0.0529287,126.03,126.0,7.9402]
[1742556096586,0.0529287,126.03,126.0,20.39878442]
[1742556096587,5.46454726,126.02,126.0,20.39878442]
[1742556096788,5.46454726,126.01,126.0,20.39878442]
[1742556097291,36.76973168,126.01,125.99,12.45858442]
[1742556097488,5.46454726,126.0,125.98,12.45858442]
[1742556097786,8.04973168,125.99,125.95,12.45858442]
[1742556098090,5.46454726,125.98,125.96,12.45858442]
[1742556098385,2.64562062,125.98,125.97,12.45858442]
[1742556098586,8.10143037,125.98,125.97,12.45858442]
[1742556098790,8.10143037,125.98,125.97,20.40078442]
[1742556099287,8.10302949,125.98,125.97,20.40078442]
[1742556099587,2.64562062,125.98,125.97,20.40078442]
[1742556102083,0.0604362,125.98,125.97,20.40078442]
[1742556102682,0.0604362,125.98,125.97,7.9422]
[1742556102882,5.51134155,125.98,125.97,20.40078442]
[1742556103284,2.63865315,125.98,125.97,20.40078442]
[1742556104494,0.0604362,125.98,125.97,20.40078442]
[1742556107297,0.0604362,125.98,125.96,7.9425]
[1742556107494,0.0604362,125.98,125.95,41.19858442]
[1742556107695,28.7404362,125.98,125.95,12.45858442]
[1742556107898,28.7404362,125.98,125.95,20.40168442]
[1742556108196,28.7404362,125.98,125.95,12.45858442]
[1742556108389,28.7404362,125.98,125.96,7.9427]
[1742556109195,28.7404362,125.98,125.95,20.40168442]
[1742556109994,28.7404362,125.98,125.95,7.9431]
[1742556110193,36.6420362,125.98,125.94,20.40228442]
[1742556110403,36.6420362,125.98,125.94,12.45858442]
[1742556110602,36.6420362,125.98,125.94,20.40218442]
[1742556110803,8.01573245,125.97,125.94,20.40218442]
[1742556111003,2.57311859,125.97,125.94,20.40218442]
[1742556111201,2.57311859,125.97,125.95,7.9433]
[1742556111391,36.6420362,125.98,125.95,7.9433]
[1742556111595,5.44021337,125.97,125.95,7.9433]
[1742556111796,36.6420362,125.98,125.95,7.9433]
[1742556112001,5.43970285,125.97,125.96,7.9428]
[1742556112190,8.01014624,125.97,125.94,12.45858442]
[1742556112395,2.57120212,125.97,125.95,12.45858442]
[1742556112595,28.7004362,125.98,125.97,7.9422]
[1742556112796,34.13783412,125.98,125.97,7.9422]
[1742556113004,34.13783412,125.98,125.96,7.9425]
[1742556113297,31.27054332,125.98,125.96,7.9425]
[1742556113499,2.57010712,125.97,125.96,7.9425]
[1742556114707,2.57010712,125.97,125.93,2.0217]
[1742556114708,2.57010712,125.97,125.94,12.45858442]
[1742556114906,2.57010712,125.97,125.93,12.45858442]
[1742556115107,10.51260712,125.97,125.94,7.9438]
[1742556115306,2.57010712,125.96,125.94,7.9438]
[1742556115509,2.57010712,125.96,125.93,12.45858442]
[1742556115805,28.58,125.95,125.93,20.40288442]
[1742556116199,28.63322398,125.95,125.93,20.40288442]
[1742556116806,36.57672398,125.95,125.93,12.45858442]
[1742556117709,7.9443,125.94,125.91,20.40438442]
[1742556118206,36.57722398,125.95,125.91,12.45858442]
[1742556118408,28.63322398,125.95,125.91,12.45858442]
[1742556118802,36.57692398,125.95,125.91,20.40388442]
[1742556119004,28.63322398,125.95,125.91,20.40388442]
[1742556119202,28.63322398,125.95,125.9,261.86]
[1742556119203,12.45858442,125.94,125.89,12.45858442]
[1742556119612,0.0550877,125.93,125.9,12.45858442]
[1742556119802,28.58,125.92,125.91,7.9454]
[1742556120410,28.58,125.92,125.9,20.40488442]
[1742556120712,28.58,125.92,125.9,12.45858442]
[1742556121010,28.58,125.92,125.91,7.9459]
[1742556121202,28.58,125.92,125.9,12.45858442]
[1742556121611,28.58,125.92,125.9,20.40468442]
[1742556121809,28.58,125.92,125.9,12.45858442]
[1742556122205,28.58,125.92,125.91,7.9459]
[1742556122404,28.58,125.92,125.9,12.45858442]
[1742556122606,28.58,125.92,125.88,12.45858442]
[1742556123002,0.05300504,125.91,125.88,12.45858442]
[1742556123304,0.05300504,125.91,125.9,7.9466]
[1742556123908,0.05300504,125.91,125.9,20.40518442]
[1742556125214,28.54,125.94,125.93,7.9447]
[1742556125412,28.54,125.95,125.92,12.45858442]
[1742556125807,28.54,125.95,125.93,7.9442]
[1742556126002,28.54,125.95,125.92,12.45858442]
[1742556126416,28.59617044,125.95,125.93,7.9442]
[1742556126915,28.59617044,125.95,125.92,12.51200882]
[1742556127318,28.59617044,125.95,125.93,7.9443]
[1742556127704,28.59617044,125.95,125.92,12.51200882]
[1742556127909,28.59617044,125.95,125.93,12.45858442]
[1742556129318,28.59617044,125.95,125.93,20.40298442]
[1742556130218,28.59617044,125.95,125.92,0.0534244]
[1742556130219,36.53967044,125.95,125.92,20.45710882]
[1742556130417,48.99825486,125.95,125.92,7.9985244]
[1742556131827,41.05475486,125.95,125.93,7.9446]
[1742556132521,48.99835486,125.95,125.93,7.9446]
[1742556132715,7.99851302,125.94,125.93,7.9446]
[1742556133116,7.99851302,125.94,125.92,7.9984244]
[1742556133419,2.56706684,125.94,125.92,7.9984244]
[1742556133714,48.99815486,125.95,125.92,7.9984244]
[1742556133920,5.43466074,125.94,125.92,7.9984244]
[1742556134219,48.99815486,125.95,125.92,7.9984244]
[1742556134408,5.43375845,125.94,125.92,7.9984244]
[1742556134613,48.99815486,125.95,125.92,7.9984244]
[1742556134808,5.43607445,125.94,125.92,7.9984244]
[1742556135014,48.99815486,125.95,125.92,7.9984244]
[1742556135312,5.43547614,125.94,125.92,7.9984244]
[1742556135512,2.56889767,125.94,125.92,7.9984244]
[1742556136020,2.56889767,125.93,125.92,7.9984244]
[1742556136422,8.01035977,125.93,125.92,7.9984244]
[1742556137117,2.56889767,125.93,125.92,7.9984244]
[1742556137324,8.01096577,125.93,125.92,7.9984244]
[1742556137524,8.01096577,125.93,125.92,0.0534244]
[1742556139317,8.00986023,125.93,125.92,0.0534244]
[1742556140922,15.95456023,125.93,125.92,0.0534244]
[1742556141227,8.01227485,125.93,125.92,0.0534244]
[1742556143030,8.01505238,125.93,125.92,0.0534244]
[1742556144525,8.01505238,125.93,125.92,7.9987244]
[1742556146330,8.01505238,125.93,125.92,0.0534244]
[1742556147343,15.95975238,125.93,125.92,0.0534244]
[1742556147641,8.01505238,125.93,125.92,0.0534244]
[1742556148741,8.02159474,125.93,125.92,0.0534244]
[1742556149838,8.02325318,125.93,125.92,0.0534244]
[1742556151743,8.02325318,125.93,125.92,7.9987244]
[1742556152344,8.02325318,125.93,125.92,20.45730882]
[1742556152546,8.02981364,125.93,125.92,20.45730882]
[1742556152737,71.86993499,125.95,125.94,7.9441]
[1742556152937,71.86993499,125.95,125.94,20.40268442]
[1742556155640,0.05617044,125.95,125.94,20.40268442]
[1742556160144,36.4812,125.99,125.96,7.9427]
[1742556161147,28.54,125.99,125.97,7.9421]
[1742556161446,28.59076509,125.99,125.97,7.9421]
[1742556163044,0.05076509,125.99,125.98,7.9415]
[1742556163245,0.05076509,125.99,125.96,12.51748326]
[1742556164051,0.05076509,125.99,125.97,7.9418]
[1742556164953,2.56450425,125.98,125.97,7.9418]
[1742556167260,2.56450425,125.98,125.96,20.45998326]
[1742556167560,2.56450425,125.97,125.96,0.05889884]
[1742556168362,2.56450425,125.97,125.96,8.00169884]
[1742556168554,2.56450425,125.97,125.96,0.05889884]
[1742556168855,2.56450425,125.97,125.96,8.00169884]
[1742556169157,2.56450425,125.97,125.96,0.05889884]
[1742556170361,2.56450425,125.97,125.96,8.00169884]
[1742556173866,43.54308867,125.97,125.96,0.0027284]
[1742556174164,43.54308867,125.97,125.9,12.45858442]
[1742556174367,7.9437,125.95,125.91,7.9458]
[1742556174565,31.08450425,125.94,125.91,7.9458]
[1742556175269,2.56450425,125.93,125.91,7.99994816]
[1742556175667,28.57107807,125.94,125.91,7.99994816]
[1742556176559,2.55901536,125.93,125.91,7.99994816]
[1742556177066,36.51517807,125.94,125.91,0.05414816]
[1742556177867,36.51517807,125.94,125.91,8.00004816]
[1742556178065,28.57107807,125.94,125.91,0.05414816]
[1742556178271,2.55843444,125.93,125.91,0.05414816]
[1742556178658,2.55843444,125.92,125.91,0.05414816]
[1742556178865,10.50373444,125.92,125.91,0.05414816]
[1742556179574,2.55843444,125.92,125.91,0.05414816]
[1742556182864,2.55843444,125.92,125.91,8.00004816]
[1742556183573,2.55843444,125.92,125.91,0.05414816]
[1742556184466,2.55843444,125.92,125.91,8.00004816]
[1742556189869,0.05107807,125.94,125.91,8.00004816]
[1742556190072,0.05107807,125.94,125.92,7.945]
[1742556190276,2.55883008,125.93,125.91,0.05414816]
[1742556190670,2.55883008,125.93,125.91,7.99964816]
[1742556190871,2.55883008,125.92,125.91,7.99964816]
[1742556195976,3.008e-05,125.92,125.91,7.99964816]
[1742556196274,3.008e-05,125.92,125.91,36.53964816]
[1742556196477,0.05107807,125.94,125.93,7.9447]
[1742556196778,0.05107807,125.94,125.93,20.40328442]
[1742556198581,11.02492691,125.98,125.97,7.9422]
[1742556198787,11.02492691,125.98,125.97,20.40078442]
[1742556198984,11.02492691,125.98,125.97,7.9422]
[1742556199980,0.05175245,125.99,125.96,0.05637292]
[1742556200691,0.05175245,125.99,125.97,7.9418]
[1742556203389,7.99285245,125.99,125.96,7.99887292]
[1742556204891,0.05175245,125.99,125.96,7.99887292]
[1742556205393,0.05175245,125.99,125.97,7.9421]
[1742556205692,0.05175245,125.99,125.96,0.05637292]
[1742556205895,7.99295245,125.99,125.96,7.99867292]
[1742556206597,7.9422,125.97,125.96,0.05637292]
[1742556207294,7.9418,125.98,125.96,0.05637292]
[1742556208196,2.54235037,125.97,125.96,0.05637292]
[1742556208892,10.48455037,125.97,125.96,0.05637292]
[1742556209592,51.46313479,125.97,125.96,0.05637292]
[1742556210497,7.9441,125.94,125.92,262.08]
[1742556210698,7.9441,125.94,125.92,270.025]
[1742556211296,2.54235037,125.93,125.92,270.025]
[1742556221606,2.54235037,125.93,125.92,7.945]
[1742556221903,2.54235037,125.93,125.91,12.50743773]
[1742556222303,7.99741494,125.94,125.91,20.45293773]
[1742556222498,0.05301494,125.94,125.91,12.50743773]
[1742556222703,0.05301494,125.94,125.91,20.45283773]
[1742556222908,2.54302849,125.93,125.91,12.50743773]
[1742556223407,2.54302849,125.92,125.91,20.45333773]
[1742556228401,0.05301494,125.94,125.93,7.9447]
[1742556228605,2.5983872,125.94,125.93,48.92328442]
[1742556229308,44.09970766,125.97,125.96,7.9428]
[1742556231010,0.0572104,125.98,125.95,0.0557061]
[1742556231411,0.0572104,125.98,125.95,12.51429052]
[1742556232114,0.0572104,125.98,125.96,7.9424]
[1742556233112,0.0572104,125.98,125.97,7.9422]
[1742556234911,0.0572104,125.98,125.97,20.40078442]
[1742556235716,0.0572104,125.98,125.97,7.9422]
[1742556236320,0.0572104,125.98,125.96,36.4626]
[1742556236513,0.0572104,125.98,125.96,7.9426]
[1742556236914,0.0572104,125.98,125.97,7.9422]
[1742556239220,0.0572104,125.98,125.95,12.51429052]
[1742556239521,0.0572104,125.98,125.97,7.9422]
[1742556241723,2.58764997,125.98,125.97,7.9422]
[1742556244119,2.58764997,125.98,125.97,20.40078442]